Workbook

Sheet Лист1
H5: Приложение 3
H6: к муниципальной программе города «Усооье-Сибирское «Профилактикатерроризма и экстремизма, на территории муниципального образования «город Усолье-Сибирское» на 2022-2027 годы
B7: Ресурсное обеспечение реализации муниципальной программы города Усолье-Сибирское «Профилактика терроризма и экстремизма на территории муниципального образования «город Усолье-Сибирское» на 2022-2027 годы (далее - Программа)
B8: Наименование Программы, подпрограммы, основного мероприятия, мероприятия, прокта | C8: Ответственный исполнитель Программы, соисполнители Программы, участники Программы, участники подпрограммы | D8: Источник финансирования | E8: Общий объем финансирования, руб. | F8: Объем финансирования, руб.
F9: 2022 | G9: 2023 | H9: 2024 | I9: 2025 | J9: 2026 | K9: 2027
B10: 1 | C10: 2 | D10: 3 | E10: 4 | F10: 5 | G10: 6 | H10: 7 | I10: 8 | J10: 9
B11: Программа «Профилактика терроризма и экстремизма на территории муниципального образования «город Усолье-Сибирское» на 2022-2027 годы | C11: МКУ «Служба г.Усолье-Сибирское по вопросам ГОЧС и ПБ» | D11: Всего | E11: =H11+G11+F11+J11+I11+K11 -> 41,352,142.02 | F11: =F41+F38+F35+F32+F29 -> 1,530,308.45 | G11: =G41+G38+G35+G32+G29 -> 5,647,102.43 | H11: =H41+H38+H35+H32+H29 -> 14,648,921.01 | I11: =I14 -> 8,859,512.11 | J11: =J41+J38+J35+J32+J29 -> 5,333,149.01 | K11: =K41+K38+K35+K32+K29 -> 5,333,149.01
D12: Областной бюджет | E12: =H12+G12+F12+J12+I12+K12 -> 6,373,400.00 | F12: 0.00 | G12: =G39+G33+G36 -> 0.00 | H12: =H39+H36+H33 -> 6,373,400.00 | I12: 0.00 | J12: =J39+J36+J33 -> 0.00 | K12: =K39+K36+K33 -> 0.00
D13: Бюджет города | E13: =H13+G13+F13+J13+I13+K13 -> 34,978,742.02 | F13: =F29+F34+F37+F40+F41 -> 1,530,308.45 | G13: =G41+G40+G37+G34+G29 -> 5,647,102.43 | H13: =H41+H40+H37+H34+H29 -> 8,275,521.01 | I13: =I16 -> 8,859,512.11 | J13: =J41+J40+J37+J34+J29 -> 5,333,149.01 | K13: =K41+K40+K37+K34+K29 -> 5,333,149.01
B14: Подпрограмма 1 «Профилактика террористической и экстремистской деятельности на территории муниципального образования «город Усолье-Сибирское» на 2022-2027 годы | C14: МКУ «Служба г.Усолье-Сибирское по вопросам ГОЧС и ПБ» | D14: Всего | E14: =H14+G14+F14+J14+I14+K14 -> 41,352,142.02 | F14: =F41+F38+F35+F32+F29 -> 1,530,308.45 | G14: =G41+G38++G35+G32+G29 -> 5,647,102.43 | H14: =H41+H38+H35+H32+H29 -> 14,648,921.01 | I14: =I29+I32+I35+I38+I41 -> 8,859,512.11 | J14: =J41+J38+J35+J32+J29 -> 5,333,149.01 | K14: =K41+K38+K35+K32+K29 -> 5,333,149.01
D15: Областной бюджет | E15: =F15+G15+H15+J15+I15+K15 -> 6,373,400.00 | F15: 0.00 | G15: =G39+G36+G33 -> 0.00 | H15: =H39+H36+H33 -> 6,373,400.00 | I15: =I33+I36+I39 -> 0.00 | J15: =J39+J36+J33 -> 0.00 | K15: =K39+K36+K33 -> 0.00
D16: Бюджет города | E16: =F16+G16+H16+J16+I16+K16 -> 34,978,742.02 | F16: =F29+F34+F37+F40+F41 -> 1,530,308.45 | G16: =G41+G40+G37+G34+G29 -> 5,647,102.43 | H16: =H41+H40+H37+H34+H29 -> 8,275,521.01 | I16: =I29+I32+I35+I38+I41 -> 8,859,512.11 | J16: =J41+J40+J37+J34+J29 -> 5,333,149.01 | K16: =K41+K40+K37+K34+K29 -> 5,333,149.01
B17: Основное мероприятие 1.1. «Проведение информационно-пропагандистских мероприятий по профилактике терроризма и экстремизма в муниципальных учреждениях образования, дополнительного образования, культуры, физической культуры и спорта» | C17: Отдел образования УСКВ; Отдел спорта и молодежной политики УСКВ; Отдел культуры УСКВ | D17: Без финансирования
B20: Основное мероприятие 1.2. «Проведение лекций, бесед, классных часов, инструктажей, родительских собраний по вопросам профилактики терроризма и экстремизма» | C20: Отдел образования УСКВ; Отдел спорта и молодежной политики УСКВ; Отдел культуры УСКВ; Отдел по обеспечению деятельности КДН УСКВ | D20: Без финансирования
B23: Основное мероприятие 1.3. Информирование населения через СМИ и интернет ресурсы (статьи, ролики, памятки) по вопросам противодействия терроризму и экстремизму | C23: Отдел образования УСКВ; Отдел спорта и молодежной политики УСКВ; Отдел культуры УСКВ; Отдел по взаимодействию с общественностью и аналитической работе администрации города; МКУ «Служба г.Усолье-Сибирское по вопросам ГОЧС и ПБ» | D23: Без финансирования
B26: Основное мероприятие 1.4. «Проведение учений и тренировок по отработке действий населения при угрозе совершения террористического акта в муниципальных учреждениях образования, дополнительного образования, культуры, физической культуры и спорта» | C26: Отдел образования УСКВ; Отдел спорта и молодежной политики УСКВ; Отдел культуры УСКВ администрации города; МКУ «Служба г.Усолье-Сибирское по вопросам ГОЧС и ПБ» | D26: Без финансирования
B29: Основное мероприятие 1.5. «Повышение квалификации должностных лиц, ответственных за реализацию мероприятий в сфере профилактики терроризма, за организацию деятельности по противодействию терроризму на муниципальном уровне» | C29: Отдел кадровой работы и наград администрации города; МКУ «Служба г.Усолье-Сибирское по вопросам ГОЧС и ПБ» | D29: Бюджет города | E29: =F29+G29+H29+J29 -> 16,200.00 | F29: 0.00 | G29: 16,200.00 | H29: 0.00 | I29: 0.00 | J29: 0.00 | K29: 0.00
B32: Основное мероприятие 1.6 «Обеспечение антитеррористической защищенности муниципальных дошкольных образовательных учреждений» | C32: МБДОУ | D32: Всего | E32: =H32+G32+F32+J32+I32+K32 -> 0.00 | F32: =F33+F34 -> 0.00 | G32: =G33+G34 -> 0.00 | H32: =H33+H34 -> 0.00 | I32: 0.00 | J32: =J34+J33 -> 0.00 | K32: =K33+K34 -> 0.00
D33: Областной бюджет | E33: 0.00 | F33: 0.00 | G33: 0.00 | H33: 0.00 | I33: 0.00 | J33: 0.00 | K33: 0.00
D34: Бюджет города | E34: 0.00 | F34: 0.00 | G34: 0.00 | H34: 0.00 | I34: 0.00 | J34: 0.00 | K34: 0.00
B35: Основное мероприятие 1.7 «Обеспечение антитеррористической защищенности муниципальных общеобразовательных учреждений» | C35: МБОУ | D35: Всего | E35: 7,165,100.00 | F35: 0.00 | G35: =G37+G36 -> 0.00 | H35: =H37+H36 -> 7,165,100.00 | I35: 0.00 | J35: =J36+J37 -> 0.00 | K35: =K36+K37 -> 0.00
D36: Областной бюджет | E36: 6,373,400.00 | F36: 0.00 | G36: 0.00 | H36: =6405100-31700 -> 6,373,400.00 | I36: 0.00 | J36: 0.00 | K36: 0.00
D37: Бюджет города | E37: 791,700.00 | F37: 0.00 | G37: 0.00 | H37: 791,700.00 | I37: 0.00 | J37: 0.00 | K37: 0.00
B38: Основное мероприятие 1.8. «Обеспечение антитеррористической защищенности муниципальных учреждений дополнительного образования» | C38: МБОУ ДО "ДДТ"; МБОУ ДО "СЮН"; МБОУ ДО "ДЮСШ № 1" | D38: Всего | E38: 0.00 | F38: 0.00 | G38: =G39+G40 -> 0.00 | H38: =H39+H40 -> 0.00 | I38: 0.00 | J38: =J39+J40 -> 0.00 | K38: =K39+K40 -> 0.00
D39: Областной бюджет | E39: 0.00 | F39: 0.00 | G39: 0.00 | H39: 0.00 | I39: 0.00 | J39: 0.00 | K39: 0.00
D40: Бюджет города | E40: =F40+G40+H40+J40+I40+K40 -> 0.00 | F40: 0.00 | G40: 0.00 | H40: 0.00 | I40: 0.00 | J40: 0.00 | K40: 0.00
B41: Основное мероприятие 1.9 «Обеспечение антитеррористических мер, направленных на воспрепятствование неправомерному проникновению в муниципальные учреждения образования, дополнительного образования, культуры, физической культуры и спорта» | C41: МБДОУ; МБОУ; МБУ ДО; Учреждения культуры; Учреждения физической культуры и спорта | D41: Бюджет города | E41: =H41+G41+F41+J41+I41+K41 -> 34,170,842.02 | F41: =F44+F48+F52 -> 1,530,308.45 | G41: =G45+G46+G47+G49+G50+G53+G54 -> 5,630,902.43 | H41: =H54+H50+H49+H47+H46+H45+H53 -> 7,483,821.01 | I41: =I44+I48+I52 -> 8,859,512.11 | J41: =J44+J48+J52 -> 5,333,149.01 | K41: =K44+K48+K52 -> 5,333,149.01
B44: Мероприятие 1.9.1 «Обеспечение антитеррористических мер, направленных на воспрепятствование неправомерному проникновению в муниципальные учреждения образования» | C44: Всего | D44: Бюджет города | E44: =F44+G44+H44+J44+I44+K44 -> 23,270,253.48 | F44: =F45+F46+F47 -> 697,282.80 | G44: 4,200,905.36 | H44: 5,168,352.86 | I44: =I45+I46+I47 -> 5,727,008.44 | J44: =J45+J46+J47 -> 3,738,352.01 | K44: =K45+K46+K47 -> 3,738,352.01
C45: МБДОУ | E45: =H45+G45+F45+J45+I45+K45 -> 3,319,658.09 | F45: 390,258.00 | G45: 1,332,280.53 | H45: 472,483.44 | I45: =327010.9+1817.94+141785.48 -> 470,614.32 | J45: 327,010.90 | K45: 327,010.90
C46: МБОУ | E46: =H46+G46+F46+J46+I46+K46 -> 18,554,955.28 | F46: 202,356.00 | G46: 2,466,366.72 | H46: 4,408,516.98 | I46: =4398854.48+585016.76 -> 4,983,871.24 | J46: 3,246,922.17 | K46: 3,246,922.17
C47: МБОУ ДО "ДДТ"; МБОУ ДО "СЮН"; МБОУ ДО "ДЮСШ № 1" | E47: =H47+G47+F47+J47+I47+K47 -> 1,395,640.11 | F47: 104,668.80 | G47: 402,258.11 | H47: 287,352.44 | I47: 272,522.88 | J47: 164,418.94 | K47: 164,418.94
B48: Мероприятие 1.9.2 «Обеспечение антитеррористических мер, направленных на воспрепятствование неправомерному проникновению в муниципальные учреждения культуры и учреждения дополнительного образования, подведомственные отделу культуры УСКВ» | C48: Всего | D48: Бюджет города | E48: =F48+G48+H48+J48+I48+K48 -> 10,657,386.30 | F48: =F49+F50 -> 822,625.65 | G48: 1,416,768.27 | H48: 2,270,428.71 | I48: =I49+I50 -> 3,019,103.67 | J48: =J49+J50 -> 1,564,230.00 | K48: 1,564,230.00
C49: Учреждения культуры (МБУК "УЦБС", МБУК ДК "Мир", МБКДУ "Дворец Культуры") | E49: =H49+G49+F49+J49+I49+K49 -> 10,466,614.62 | F49: 796,806.45 | G49: 1,385,163.51 | H49: 2,236,512.00 | I49: =52560+1435926.33+42600+1454873.67 -> 2,985,960.00 | J49: =52560+1435926.33+42600 -> 1,531,086.33 | K49: =52560+1435926.33+42600 -> 1,531,086.33
C50: МБОУ ДО "ДМШ"; МБОУ ДО "ДХШ" | E50: =F50+G50+H50+J50+I50+K50 -> 190,771.68 | F50: 25,819.20 | G50: 31,604.76 | H50: 33,916.71 | I50: =18702.73+14440.94 -> 33,143.67 | J50: =18702.73+14440.94 -> 33,143.67 | K50: =18702.73+14440.94 -> 33,143.67
B52: Мероприятие 1.9.3 «Обеспечение антитеррористических мер, направленных на воспрепятствование неправомерному проникновению в муниципальные учреждения физической культуры и спорта» | C52: Всего | D52: Бюджет города | E52: =F52+G52+H52+I52+J52+K52 -> 243,202.24 | F52: =F53+F54 -> 10,400.00 | G52: 13,228.80 | H52: 45,039.44 | I52: =I53+I54 -> 113,400.00 | J52: 30,567.00 | K52: 30,567.00
C53: МБУ "Спортивный комплекс "Химик" | E53: =H53+G53+F53+J53+I53+K53 -> 128,249.60 | F53: 10,400.00 | G53: 13,228.80 | H53: 15,436.80 | I53: =46800-2550 -> 44,250.00 | J53: 22,467.00 | K53: 22,467.00
C54: МБУ "Спортивный центр" | E54: =F54+G54+H54+I54+J54+K54 -> 114,952.64 | F54: 0.00 | G54: 0.00 | H54: 29,602.64 | I54: =66600+2550 -> 69,150.00 | J54: 8,100.00 | K54: 8,100.00
B55: Мэр города М.В.Торопкин
